bitfinex/quotes_SOLUSD_20240718
["timestamp","ask_amount","ask_price","bid_price","bid_amount"]
[1721295277940,6.49188894,159.91,159.87,46.25092443]
[1721295278343,6.49188894,159.91,159.88,13.18632684]
[1721295278541,6.49188894,159.91,159.89,45.0]
[1721295279334,7.8574451,159.91,159.88,45.0]
[1721295283767,6.49188894,159.91,159.88,45.0]
[1721295283952,7.8574451,159.91,159.88,45.0]
[1721295284671,6.49188894,159.91,159.88,45.0]
[1721295285966,7.8574451,159.91,159.88,45.0]
[1721295287974,7.8574451,159.91,159.85,12.05]
[1721295287975,12.05,159.9,159.85,12.05]
[1721295288268,1.36555616,159.89,159.84,12.05]
[1721295288483,1.36555616,159.89,159.84,13.30099702]
[1721295288770,12.05,159.88,159.83,12.05]
[1721295288971,1.36555616,159.87,159.83,12.05]
[1721295289770,12.05,159.86,159.81,12.05]
[1721295290055,1.36555616,159.85,159.82,1.25126901]
[1721295290269,1.36555616,159.85,159.81,12.05]
[1721295290456,1.36555616,159.85,159.82,1.25127022]
[1721295290656,13.41555616,159.85,159.8,12.05]
[1721295291177,1.36555616,159.84,159.8,12.05]
[1721295292279,1.36555616,159.85,159.8,12.05]
[1721295292651,1.36555616,159.85,159.79,1.2512706]
[1721295292652,1.36555616,159.85,159.81,12.05]
[1721295292853,1.36555616,159.85,159.82,45.0]
[1721295293180,1.36555616,159.85,159.81,45.0]
[1721295294380,1.36555616,159.86,159.82,12.05]
[1721295294675,1.36555616,159.86,159.83,45.0]
[1721295297963,13.41555616,159.86,159.83,45.0]
[1721295298159,13.41555616,159.85,159.82,45.0]
[1721295298376,13.41555616,159.85,159.81,45.0]
[1721295298572,12.05,159.85,159.81,45.0]
[1721295299083,6.48959913,159.84,159.81,45.0]
[1721295301789,7.85515529,159.84,159.81,45.0]
[1721295302088,26.16145529,159.84,159.81,45.0]
[1721295302466,19.67185616,159.84,159.81,45.0]
[1721295302669,19.67185616,159.84,159.78,27.7688]
[1721295302670,12.05,159.83,159.78,27.7688]
[1721295302875,13.41555616,159.83,159.79,1.25150044]
[1721295303070,1.36555616,159.82,159.79,1.25150044]
[1721295303270,1.36555616,159.82,159.78,12.05]
[1721295303488,13.41555616,159.83,159.78,12.05]
[1721295303674,1.36555616,159.82,159.78,12.05]
[1721295304179,13.41555616,159.82,159.76,12.05]
[1721295304366,13.41555616,159.82,159.77,1.25160745]
[1721295304564,13.41555616,159.82,159.77,13.30160745]
[1721295304764,12.05,159.82,159.77,13.30160745]
[1721295305375,12.05,159.82,159.78,46.25157683]
[1721295305576,1.36555616,159.84,159.79,12.05]
[1721295305889,1.36555616,159.84,159.8,46.25142629]
[1721295306099,13.41555616,159.84,159.8,45.0]
[1721295306264,6.5822,159.86,159.81,1.25142803]
[1721295306465,18.6322,159.86,159.81,13.30142803]
[1721295306885,18.6322,159.86,159.82,45.0]
[1721295307067,13.41555616,159.87,159.82,45.0]
[1721295307390,13.41555616,159.87,159.83,1.25123548]
[1721295307391,1.36555616,159.87,159.83,1.25123548]
[1721295307571,13.41555616,159.88,159.83,13.30123548]
[1721295307773,13.41555616,159.88,159.84,45.0]
[1721295309202,17.55895616,159.89,159.85,1.2511756]
[1721295309494,18.7038,159.9,159.85,13.3011756]
[1721295309796,6.6538,159.9,159.86,45.0]
[1721295309983,1.36555616,159.89,159.86,45.0]
[1721295311091,12.05,159.9,159.86,45.0]
[1721295311481,12.05,159.91,159.87,1.25089373]
[1721295311693,12.05,159.91,159.86,57.05]
[1721295311892,13.41555616,159.92,159.87,13.30089656]
[1721295312192,1.36555616,159.92,159.88,57.05]
[1721295312382,1.36555616,159.92,159.89,57.05]
[1721295312698,6.48729527,159.91,159.89,12.05]
[1721295312904,6.48729527,159.91,159.9,45.0]
[1721295314086,6.48729527,159.91,159.89,45.0]
[1721295314381,6.48729527,159.91,159.89,57.05]
[1721295318878,6.48729527,159.91,159.89,45.0]
[1721295319077,6.48729527,159.91,159.9,13.300661]
[1721295319277,1.36555616,159.96,159.9,58.300661]
[1721295319477,6.48021921,159.94,159.91,58.30058242]
[1721295319692,6.48021921,159.94,159.91,57.05]
[1721295320607,6.48021921,159.94,159.91,45.0]
[1721295321397,1.36555616,159.93,159.91,45.0]
[1721295321696,1.36555616,159.92,159.87,13.30057681]
[1721295321907,13.41555616,159.92,159.87,13.30057681]
[1721295322082,13.41555616,159.92,159.82,16.73427588]
[1721295322420,12.05,159.91,159.85,12.05]
[1721295322699,1.36555616,159.9,159.86,1.25093975]
[1721295323288,1.36555616,159.9,159.86,13.30093975]
[1721295323584,1.36555616,159.91,159.87,58.30090931]
[1721295323791,1.36555616,159.91,159.87,57.05]
[1721295326005,13.41555616,159.91,159.87,45.0]
[1721295327579,1.36555616,159.91,159.87,57.05]
[1721295329102,13.41555616,159.91,159.87,45.0]
[1721295329884,6.47487774,159.9,159.87,45.0]
[1721295330504,6.47487774,159.9,159.87,57.05]
[1721295330675,6.47487774,159.9,159.89,12.05]
[1721295330879,1.36555616,159.96,159.89,57.05]
[1721295331107,6.48478858,159.94,159.92,12.05]
[1721295331401,6.48478858,159.94,159.93,45.0]
[1721295332610,6.48478858,159.94,159.92,45.0]
[1721295333206,1.36555616,159.93,159.9,12.05]
[1721295335793,6.48478858,159.94,159.91,45.0]
[1721295335995,1.36555616,159.93,159.91,45.0]
[1721295336184,1.36555616,159.93,159.9,45.0]
[1721295337679,1.36555616,159.92,159.9,45.0]
[1721295338813,1.36555616,159.93,159.9,45.0]
[1721295338992,1.36555616,159.92,159.9,45.0]
[1721295339881,1.36555616,159.93,159.9,45.0]
[1721295340084,1.36555616,159.92,159.9,45.0]
[1721295340724,13.41555616,159.92,159.86,12.05]
[1721295341407,6.48340389,159.91,159.86,12.05]
[1721295341600,1.36555616,159.9,159.87,1.25088142]
[1721295341911,1.36555616,159.9,159.87,46.25088142]
[1721295342085,7.84896005,159.91,159.87,58.30088142]
[1721295342285,6.48340389,159.91,159.88,13.18636984]
[1721295342485,6.48340389,159.91,159.89,45.0]
[1721295343081,6.48340389,159.91,159.89,57.05]
[1721295343512,6.48340389,159.91,159.9,1.25075104]
[1721295343691,6.48340389,159.91,159.9,13.30075104]
[1721295343892,1.36555616,159.95,159.9,58.30075104]
[1721295344107,6.48245681,159.94,159.91,57.05]
[1721295344406,6.48245681,159.94,159.91,58.30054066]
[1721295344634,6.48245681,159.94,159.91,57.05]
[1721295350706,1.36555616,159.93,159.91,45.0]
[1721295350887,1.36555616,159.93,159.88,12.05]
[1721295351215,1.36555616,159.93,159.85,1.25052135]
[1721295351216,13.41555616,159.92,159.87,12.05]
[1721295352010,1.36555616,159.91,159.87,12.05]
[1721295352213,1.36555616,159.91,159.88,1.25078786]
[1721295352407,1.36555616,159.91,159.88,13.30078786]
[1721295352593,1.36555616,159.92,159.88,12.05]
[1721295352790,1.36555616,159.92,159.85,1.25078679]
[1721295353025,1.36555616,159.92,159.89,12.05]
[1721295353604,1.36555616,159.93,159.89,12.05]
[1721295353800,1.36555616,159.92,159.9,45.0]
[1721295354315,18.53245681,159.94,159.9,45.0]
[1721295354316,13.41555616,159.94,159.9,45.0]
[1721295354496,6.48672248,159.92,159.9,57.05]
[1721295354700,6.48672248,159.92,159.9,45.0]
[1721295355898,6.48672248,159.92,159.9,57.05]
[1721295356097,6.48672248,159.92,159.9,45.0]
[1721295356624,6.48672248,159.92,159.9,57.05]
[1721295357215,6.48672248,159.92,159.91,13.3006356]
[1721295357421,1.36555616,159.96,159.91,58.3006356]
[1721295357718,6.48669625,159.95,159.92,45.0]
[1721295358021,6.48669625,159.95,159.92,57.05]
[1721295360091,6.48669625,159.95,159.93,1.25043244]
[1721295366928,6.48669625,159.95,159.93,13.30043244]
[1721295367141,6.48669625,159.95,159.94,57.05]
[1721295369228,1.36555616,160.0,159.94,58.30012089]
[1721295369440,6.48140834,159.99,159.95,45.0]
[1721295369731,6.48140834,159.99,159.97,12.05]
[1721295369937,6.48140834,159.99,159.98,45.0]
[1721295373519,6.48140834,159.99,159.98,58.30005584]
[1721295373836,6.48140834,159.99,159.98,57.05]
[1721295376034,1.36555616,160.05,159.98,57.05]
[1721295376210,6.49022847,160.03,159.99,1.24973553]
[1721295376411,6.49022847,160.03,160.0,12.05]
[1721295376725,6.49022847,160.03,160.01,45.0]
[1721295376926,7.85578463,160.03,160.01,45.0]
[1721295377116,7.85578463,160.03,159.94,1.24987549]
[1721295377117,12.05,160.02,159.94,1.24987549]
[1721295377316,13.41555616,160.01,159.96,12.05]
[1721295377622,13.41555616,160.01,159.94,21.24987549]
[1721295377623,18.3,160.0,159.95,13.30006516]
[1721295377845,12.05,159.97,159.89,23.69083561]
[1721295378018,12.05,159.97,159.92,12.05]
[1721295378019,13.41555616,159.97,159.92,12.05]
[1721295378348,1.36555616,159.98,159.94,12.05]
[1721295378538,1.36555616,159.98,159.93,12.05]
[1721295378740,13.41555616,159.98,159.92,12.05]
[1721295379041,13.41555616,159.98,159.93,1.25037838]
[1721295379232,13.41555616,159.98,159.93,46.25037838]
[1721295379418,12.05,159.97,159.93,46.25037838]
[1721295379615,1.36555616,159.97,159.93,46.25037838]
[1721295379818,13.41555616,159.98,159.93,58.30037838]
[1721295380033,12.05,159.99,159.94,13.30032021]
[1721295380235,35.55595616,160.0,159.95,57.05]
[1721295380440,35.55595616,160.0,159.95,12.05]
[1721295380630,35.55595616,160.0,159.96,45.0]
[1721295381224,12.05,159.99,159.96,45.0]
[1721295381424,12.05,159.99,159.95,45.0]
[1721295381841,12.05,159.99,159.94,45.0]
[1721295382046,12.05,159.99,159.95,1.25021361]
[1721295382642,13.41555616,159.98,159.94,45.0]
[1721295382841,12.05,159.95,159.85,279.0347]
[1721295383021,12.05,159.93,159.88,12.05]
[1721295383218,13.41555616,159.94,159.89,1.25064234]
[1721295383454,12.05,159.94,159.9,1.25062039]
[1721295383626,1.36555616,159.93,159.9,1.25062039]
[1721295384247,13.41555616,159.93,159.9,1.25062039]
[1721295384428,12.05,159.93,159.89,1.25064358]
[1721295384744,12.05,159.93,159.9,1.25064144]
[1721295385151,12.05,159.94,159.9,1.25064144]
[1721295386341,6.49488511,159.93,159.9,1.25064144]
[1721295386847,7.86044127,159.93,159.9,1.25064144]
[1721295387943,12.05,159.91,159.89,45.0]
[1721295388144,13.41555616,159.9,159.85,29.32043982]
[1721295388343,12.05,159.9,159.85,29.32043982]
[1721295388535,12.05,159.9,159.86,1.2508906]
[1721295389525,12.05,159.9,159.86,46.2508906]
[1721295389832,12.05,159.9,159.86,45.0]
[1721295390237,12.05,159.9,159.87,1.25088322]
[1721295390652,1.36555616,159.92,159.87,1.25088322]
[1721295390653,12.05,159.91,159.87,1.25088322]
[1721295390942,13.41555616,159.92,159.87,13.30088322]
[1721295391149,13.41555616,159.92,159.88,45.0]
[1721295391352,1.36555616,159.92,159.88,45.0]
[1721295393626,13.41555616,159.92,159.88,45.0]
[1721295394123,12.05,159.91,159.88,45.0]
[1721295394437,12.05,159.91,159.87,45.0]
[1721295394754,12.05,159.91,159.87,46.25081628]
[1721295396448,12.05,159.89,159.84,12.05]
[1721295396648,13.41555616,159.88,159.83,12.05]
[1721295396832,1.36555616,159.87,159.83,1.25108661]
[1721295397044,12.05,159.86,159.81,13.30124802]
[1721295397270,13.41555616,159.85,159.81,1.25124802]
[1721295397428,12.05,159.85,159.81,1.25124802]
[1721295397756,12.05,159.86,159.81,13.30124802]
[1721295397951,1.36555616,159.85,159.81,13.30124802]
[1721295398156,13.41555616,159.85,159.81,1.25124802]
[1721295398549,7.62145616,159.85,159.79,12.05]
[1721295398754,12.05,159.83,159.78,1.25131469]
[1721295398940,13.41555616,159.83,159.78,13.30131469]
[1721295399134,12.05,159.83,159.78,13.30131469]
[1721295399333,1.36555616,159.82,159.78,13.30131469]
[1721295399550,1.36555616,159.82,159.79,1.25149065]
[1721295399956,13.41555616,159.82,159.79,45.0]
[1721295400250,13.41555616,159.82,159.78,46.25151138]
[1721295400457,12.05,159.83,159.78,46.25151138]
[1721295400637,1.36555616,159.82,159.78,46.25151138]
[1721295402433,13.41555616,159.82,159.78,46.25151138]
[1721295402634,12.05,159.82,159.78,46.25151138]
[1721295404352,1.36555616,159.84,159.78,58.30151138]
[1721295404353,13.41555616,159.84,159.78,58.30151138]
[1721295404542,12.05,159.84,159.79,12.05]
[1721295404742,1.36555616,159.83,159.8,45.0]
[1721295404962,13.41555616,159.83,159.8,45.0]
[1721295405160,1.36555616,159.82,159.79,45.0]
[1721295405343,12.05,159.81,159.79,45.0]
[1721295405540,12.05,159.82,159.79,45.0]
[1721295405850,12.05,159.82,159.78,45.0]
[1721295406036,12.05,159.82,159.79,1.25151489]
[1721295406864,12.05,159.8,159.78,45.0]
[1721295407167,19.89840358,159.81,159.78,45.0]
[1721295407356,18.53284742,159.81,159.78,45.0]
[1721295407556,18.53284742,159.81,159.75,13.30162013]
[1721295408056,18.53284742,159.81,159.76,13.30161963]
[1721295408261,18.53284742,159.81,159.77,1.2516169]
[1721295408831,18.53284742,159.81,159.77,46.2516169]
[1721295409355,18.53284742,159.81,159.77,45.0]
[1721295410156,18.53284742,159.81,159.78,1.25161692]
[1721295410357,6.48284742,159.81,159.78,1.25161692]
[1721295413066,6.48284742,159.81,159.8,12.05]
[1721295413366,6.48284742,159.81,159.8,57.05]
[1721295414464,13.41555616,159.87,159.8,57.05]
[1721295414760,6.49133631,159.84,159.83,12.05]
[1721295414963,1.36555616,159.87,159.83,57.05]
[1721295415160,6.48616242,159.86,159.84,1.25111659]
[1721295415466,6.48616242,159.86,159.84,46.25111659]
[1721295415665,6.48616242,159.86,159.84,45.0]
[1721295416064,6.48616242,159.86,159.84,57.05]
[1721295416276,6.48616242,159.86,159.84,45.0]
[1721295418889,1.36555616,159.85,159.78,1.25111352]
[1721295419068,1.36555616,159.85,159.78,21.25111352]
[1721295419389,6.48616242,159.86,159.78,21.25111352]
[1721295419711,7.85171858,159.86,159.78,21.25111352]
[1721295420168,7.85171858,159.86,159.79,45.0]
[1721295420474,1.36555616,159.85,159.8,1.25128231]
[1721295421188,6.48616242,159.86,159.8,1.25128231]
[1721295421395,1.36555616,159.85,159.8,1.25128231]
[1721295421693,6.48616242,159.86,159.8,1.25128231]
[1721295421893,1.36555616,159.85,159.8,1.25128231]
[1721295422073,7.85171858,159.86,159.8,1.25128231]
[1721295422274,1.36555616,159.85,159.8,1.25128231]
[1721295422887,6.48616242,159.86,159.8,1.25128231]
[1721295424193,6.48616242,159.86,159.8,22.69887493]
[1721295424379,6.48616242,159.86,159.81,45.0]
[1721295424581,6.48616242,159.86,159.82,1.25105742]
[1721295424790,6.48616242,159.86,159.83,1.25112441]
[1721295425789,6.48616242,159.86,159.82,1.2511233]
[1721295425977,6.48616242,159.86,159.83,1.25112501]
[1721295426487,1.36555616,159.85,159.81,46.25112501]
[1721295426676,7.62145616,159.85,159.77,15.7689]
[1721295426871,7.62145616,159.85,159.78,1.25145526]
[1721295427095,1.36555616,159.85,159.78,1.25145526]
[1721295427301,6.47989296,159.84,159.78,1.25145526]
[1721295427485,1.36555616,159.83,159.78,1.25145526]
[1721295427994,7.84544912,159.84,159.78,1.25145526]
[1721295428505,6.47989296,159.84,159.78,1.25145526]
[1721295428679,6.47989296,159.84,159.78,46.25145526]
[1721295430586,6.47989296,159.84,159.79,0.17]
[1721295430899,6.47989296,159.84,159.8,1.25113718]
[1721295431072,22.2352,159.91,159.81,0.17]
[1721295431272,22.2352,159.91,159.82,1.25085286]
[1721295431273,23.60075616,159.91,159.82,1.25085286]
[1721295431476,6.475977,159.9,159.83,1.25084944]
[1721295432393,7.84153316,159.9,159.83,1.25084944]
[1721295433294,1.36555616,159.89,159.83,1.25084944]
[1721295433675,6.2548,159.88,159.83,1.25084944]
[1721295433882,1.36555616,159.87,159.78,1.25118903]
[1721295434090,1.36555616,159.87,159.78,22.69896285]
[1721295434911,7.62005616,159.89,159.78,22.69896285]
[1721295435276,6.2547,159.88,159.79,45.0]
[1721295435489,1.36555616,159.87,159.8,1.25124773]
[1721295436289,7.62095616,159.87,159.8,1.25124773]
[1721295436495,6.475977,159.9,159.78,1.44777382]
[1721295436496,7.62105616,159.86,159.79,1.25125472]
[1721295436692,7.62105616,159.86,159.8,1.25138139]
[1721295436693,1.36555616,159.85,159.8,1.25138139]
[1721295437599,1.36555616,159.85,159.79,1.25137756]
[1721295437802,1.36555616,159.85,159.8,1.25137797]
[1721295438704,7.62145616,159.85,159.79,1.25136989]
[1721295439006,1.36555616,159.84,159.79,1.25136989]
[1721295439207,1.36555616,159.84,159.77,1.25147146]
[1721295439409,1.36555616,159.84,159.77,46.25147146]
[1721295440610,1.36555616,159.84,159.71,16.5121]
[1721295440611,1.36555616,159.84,159.75,1.25162589]
[1721295441703,6.47499834,159.83,159.75,1.25162589]
[1721295442000,7.62265616,159.82,159.75,1.25162589]
[1721295443017,1.36555616,159.82,159.75,1.25162589]
[1721295444822,6.47499834,159.83,159.75,1.25162589]
[1721295445114,6.47499834,159.83,159.75,2.69967159]
[1721295445308,6.47499834,159.83,159.76,1.44795506]
[1721295445498,6.47499834,159.83,159.77,1.25133244]
[1721295449724,6.47499834,159.83,159.77,2.69919687]
[1721295449910,6.47499834,159.83,159.77,47.69919687]
[1721295450413,6.47499834,159.83,159.78,45.0]
[1721295450713,6.47499834,159.83,159.79,1.25129714]
[1721295450915,6.47499834,159.83,159.8,1.25129332]
[1721295451819,6.47499834,159.83,159.81,1.25124328]
[1721295451992,6.47499834,159.83,159.78,1.2512532]
[1721295452195,6.47499834,159.83,159.78,47.69902702]
[1721295460429,6.47499834,159.83,159.79,12.04]
[1721295460597,6.47499834,159.83,159.8,45.0]
[1721295460919,6.47499834,159.83,159.79,1.25137286]
[1721295460920,18.51499834,159.83,159.79,1.25137286]
[1721295464015,1.36555616,159.82,159.78,58.48777382]
[1721295464232,1.36555616,159.82,159.79,1.25146698]
[1721295464605,6.47240172,159.81,159.79,1.25146698]
[1721295465303,6.47240172,159.81,159.8,1.25150305]
[1721295465507,12.04,159.86,159.8,13.29150305]
[1721295465812,6.47140543,159.84,159.81,45.0]
[1721295467131,6.47140543,159.84,159.82,1.25130773]
[1721295468940,6.47140543,159.84,159.83,1.25121958]
[1721295469120,6.47140543,159.84,159.82,13.2911811]
[1721295469331,6.47140543,159.84,159.83,46.25120105]
[1721295469532,13.40555616,159.88,159.83,57.04]
[1721295469736,6.47234078,159.86,159.83,57.04]
[1721295471147,6.47234078,159.86,159.85,12.04]
[1721295471316,1.36555616,159.91,159.85,57.04]
[1721295471517,6.47587725,159.91,159.87,12.04]
[1721295471732,6.47587725,159.91,159.88,1.25078855]
[1721295471939,6.47587725,159.91,159.88,46.25078855]
[1721295472340,6.47587725,159.91,159.88,45.0]
[1721295473748,13.40555616,159.9,159.88,45.0]
[1721295474223,1.36555616,159.9,159.88,45.0]
[1721295474424,7.84143341,159.91,159.88,45.0]
[1721295475423,6.47587725,159.91,159.88,45.0]
[1721295477323,1.36555616,159.9,159.88,45.0]
[1721295477948,7.84143341,159.91,159.88,45.0]
[1721295479145,1.36555616,159.9,159.88,45.0]
[1721295480252,7.84143341,159.91,159.88,45.0]
[1721295481340,1.36555616,159.9,159.88,45.0]
[1721295481840,7.84143341,159.91,159.88,45.0]
[1721295482440,1.36555616,159.91,159.88,45.0]
[1721295483040,1.36555616,159.92,159.88,45.0]
[1721295483242,7.61865616,159.92,159.88,45.0]
[1721295483942,1.36555616,159.92,159.88,45.0]
[1721295486160,7.61865616,159.92,159.88,45.0]
[1721295487839,6.2536,159.91,159.88,45.0]
[1721295488034,1.36555616,159.9,159.88,45.0]
[1721295490239,1.36555616,159.9,159.88,45.0]
[1721295491261,1.36555616,159.91,159.88,45.0]
[1721295492661,6.53914074,159.9,159.88,45.0]
[1721295492861,1.36555616,159.89,159.88,45.0]
[1721295493359,6.53914074,159.9,159.88,45.0]
[1721295494257,18.56914074,159.9,159.88,45.0]
[1721295494933,6.53914074,159.9,159.88,45.0]
[1721295495135,6.53914074,159.9,159.87,45.0]
[1721295495339,6.53914074,159.9,159.87,58.28086602]
[1721295495557,6.53914074,159.9,159.87,13.28086602]
[1721295495770,6.53914074,159.9,159.88,45.0]
[1721295496671,19.9346969,159.9,159.88,45.0]
[1721295496961,13.39555616,159.89,159.88,45.0]
[1721295498757,19.64975616,159.89,159.88,45.0]
[1721295498962,13.39555616,159.89,159.84,1.25096003]
[1721295499144,12.03,159.87,159.83,2.69838098]
[1721295499344,1.36555616,159.86,159.81,28.3779]
[1721295499546,1.36555616,159.86,159.83,1.25115196]
[1721295500162,13.39555616,159.87,159.83,1.25115196]
[1721295500347,12.03,159.87,159.83,1.25115196]
[1721295500671,12.03,159.87,159.83,46.25115196]
[1721295501055,12.03,159.87,159.83,58.28115196]
[1721295501273,12.03,159.87,159.83,57.03]
[1721295502743,12.03,159.87,159.83,45.0]
[1721295502972,18.56777754,159.87,159.83,46.25115042]
[1721295503179,1.36555616,159.86,159.83,45.0]
[1721295503344,13.39555616,159.86,159.82,45.0]
[1721295503547,12.03,159.85,159.82,45.0]
[1721295505379,12.03,159.83,159.77,17.2890833]
[1721295505557,1.36555616,159.85,159.77,29.3190833]
[1721295505558,12.03,159.82,159.77,29.3190833]
[1721295507055,12.03,159.83,159.78,45.0]
[1721295507257,1.36555616,159.82,159.78,45.0]
[1721295507577,13.39555616,159.82,159.78,45.0]
[1721295507780,12.03,159.8,159.74,1.25157963]
[1721295508095,12.03,159.79,159.74,13.28157963]
[1721295508587,12.03,159.8,159.75,12.03]
[1721295508756,12.03,159.8,159.76,1.25168932]
[1721295509383,12.03,159.8,159.76,46.25168932]
[1721295510364,1.36555616,159.81,159.76,58.28168932]
[1721295510569,12.03,159.81,159.76,57.03]
[1721295513159,6.53985541,159.8,159.76,57.03]
[1721295518500,6.53985541,159.8,159.77,1.25168447]
[1721295518669,12.03,159.84,159.79,12.03]
[1721295518991,6.53927514,159.83,159.8,58.28143053]
[1721295519192,6.53927514,159.83,159.81,1.25132519]
[1721295519495,6.53927514,159.83,159.81,1.25133243]
[1721295520685,6.53927514,159.83,159.81,1.25136015]
[1721295522793,7.9048313,159.83,159.74,1.251334]
[1721295523096,12.03,159.81,159.76,12.03]
[1721295523296,12.03,159.81,159.77,1.2515179]
[1721295523507,6.53927514,159.83,159.77,12.03]
[1721295523508,12.03,159.82,159.77,12.03]
[1721295523997,18.56927514,159.83,159.78,12.03]
[1721295524197,18.56927514,159.83,159.79,45.0]
[1721295525000,6.53927514,159.83,159.79,45.0]
[1721295525193,6.53927514,159.83,159.8,1.25147453]
[1721295525399,6.53927514,159.83,159.8,13.28147453]
[1721295525698,6.53927514,159.83,159.81,45.0]
[1721295527897,6.53927514,159.83,159.8,45.0]
[1721295528100,6.53927514,159.83,159.81,1.25133391]
[1721295529708,6.53927514,159.83,159.81,1.25133404]
[1721295530605,19.9348313,159.83,159.8,45.0]
[1721295530806,19.9348313,159.83,159.79,45.0]
[1721295531014,6.53927514,159.83,159.8,1.25147322]
[1721295531382,6.53927514,159.83,159.8,13.28147322]
[1721295531583,6.53927514,159.83,159.81,45.0]
[1721295534409,6.53927514,159.83,159.8,45.0]
[1721295534583,6.53927514,159.83,159.81,1.25134845]
[1721295535207,6.53927514,159.83,159.8,1.25134845]
[1721295538813,7.9048313,159.83,159.79,45.0]
[1721295539108,19.9348313,159.83,159.79,45.0]
[1721295539896,1.36555616,159.82,159.79,45.0]
[1721295540099,7.9048313,159.83,159.78,57.03]
[1721295540296,12.03,159.83,159.79,1.25145728]
[1721295540499,6.54148632,159.82,159.79,13.28145728]
[1721295540812,6.54148632,159.82,159.8,45.0]
[1721295544613,6.54148632,159.82,159.8,57.03]
[1721295545114,6.54148632,159.82,159.8,45.0]
[1721295549707,19.93704248,159.82,159.8,45.0]
[1721295550312,19.93704248,159.82,159.77,12.03]
[1721295550614,12.03,159.8,159.75,12.03]
[1721295550783,13.39555616,159.8,159.76,1.25165685]
[1721295550986,13.39555616,159.81,159.77,1.25165533]
[1721295551199,6.54343252,159.79,159.77,1.25165533]
[1721295556332,6.54343252,159.79,159.76,57.03]
[1721295568533,6.54343252,159.79,159.76,45.0]
[1721295568759,6.54343252,159.79,159.76,46.25167664]
[1721295569046,6.54343252,159.79,159.76,58.28167664]
[1721295569548,6.54343252,159.79,159.76,57.03]
[1721295569755,6.54343252,159.79,159.77,1.25167499]
[1721295570526,6.54343252,159.79,159.78,12.03]
[1721295570740,1.36555616,159.84,159.78,57.03]
[1721295570936,6.54019969,159.84,159.79,1.25129933]
[1721295571252,6.54019969,159.84,159.82,12.03]
[1721295571636,6.54019969,159.84,159.83,45.0]
[1721295572634,6.54019969,159.84,159.83,57.03]
[1721295573345,1.36555616,159.88,159.83,57.03]
[1721295573543,6.53903129,159.87,159.84,13.28109444]
[1721295573748,6.53903129,159.87,159.85,45.0]
[1721295574055,6.53903129,159.87,159.85,57.03]
[1721295574934,6.53903129,159.87,159.85,45.0]
[1721295575124,6.53903129,159.87,159.86,1.25098583]
[1721295575324,6.53903129,159.87,159.86,13.28098583]
[1721295575527,6.53903129,159.87,159.86,58.28098583]
[1721295575938,6.53903129,159.87,159.86,57.03]
[1721295576332,18.2832,159.92,159.86,57.03]
[1721295576333,1.36555616,159.92,159.86,57.03]
[1721295576629,6.53892769,159.91,159.89,12.03]
[1721295576828,6.53892769,159.91,159.87,46.25070012]
[1721295576829,6.53892769,159.91,159.9,58.28063417]
[1721295577029,1.36555616,159.95,159.9,57.03]
[1721295577256,6.5383377,159.93,159.91,12.03]
[1721295577551,6.5383377,159.93,159.92,45.0]
[1721295579147,6.5383377,159.93,159.92,57.03]
[1721295579353,6.5383377,159.93,159.92,45.0]
[1721295582762,6.5383377,159.93,159.91,57.03]
[1721295582967,6.5383377,159.93,159.91,45.0]
[1721295583474,6.5383377,159.93,159.91,57.03]
[1721295584742,6.5383377,159.93,159.91,45.0]
[1721295584940,6.5383377,159.93,159.92,1.25055114]
[1721295585167,6.5383377,159.93,159.92,13.28049897]
[1721295585352,6.5383377,159.93,159.92,58.28050076]
[1721295585663,6.5383377,159.93,159.92,57.03]
[1721295586470,7.90389386,159.93,159.92,45.0]
[1721295586670,6.5383377,159.93,159.92,45.0]
[1721295586864,6.5383377,159.93,159.91,45.0]
[1721295587280,6.5383377,159.93,159.91,57.03]
[1721295587444,1.36555616,159.92,159.89,12.03]
[1721295587949,1.36555616,159.92,159.88,12.03]
[1721295588151,6.53893648,159.91,159.89,13.28072942]